fUST/lending_fUST_20250527
["ID","MTS","AMOUNT","RATE_DAILY","PERIOD"]
[362430937,1748286547184,-4335.68644286,0.00019,4]
[362430938,1748286549092,-454.6967448,0.00019,4]
[362430939,1748286553275,-37425.37155026,0.00019,4]
[362430940,1748286553300,-421.12,0.00019498,2]
[362430941,1748286553323,-19713.5266171,0.00020606,2]
[362430942,1748286553345,-420.0,0.00020709,2]
[362430943,1748286553366,-4.493366,0.00020883,2]
[362430944,1748286553394,-207.07408507,0.000209,4]
[362430945,1748286553421,-207.07408501,0.00021135,4]
[362430946,1748286553443,-600.0,0.00021164,2]
[362430947,1748286553464,-2407.60065895,0.00021164,2]
[362430948,1748286553486,-842.23,0.00021271,2]
[362430949,1748286553513,-207.07408501,0.00021371,5]
[362430950,1748286553538,-207.07408501,0.00021606,5]
[362430951,1748286553559,-160.0,0.00021697,2]
[362430952,1748286553583,-212.59253735,0.00021699,2]
[362430953,1748286553606,-160.0,0.00021699,2]
[362430954,1748286553628,-160.0,0.00021699,2]
[362430955,1748286553650,-317.0523094,0.00021809,2]
[362430956,1748286553680,-207.07408501,0.00021841,6]
[362430957,1748286553702,-151.0,0.00021887,2]
[362430958,1748286553724,-3000.0,0.000219,2]
[362430959,1748286553747,-300.0,0.00021909,2]
[362430960,1748286553768,-3000.0,0.0002191,2]
[362430961,1748286553794,-3000.0,0.0002192,2]
[362430962,1748286553818,-3000.0,0.0002193,2]
[362430963,1748286553841,-3000.0,0.0002194,2]
[362430964,1748286553864,-156.587,0.00021942,2]
[362430965,1748286553888,-3000.0,0.0002195,2]
[362430966,1748286553913,-3000.0,0.0002196,2]
[362430967,1748286553934,-500.0,0.00021969,2]
[362430968,1748286553958,-163.8271021,0.00021969,2]
[362430969,1748286553982,-169.27323585,0.00021969,2]
[362430970,1748286554012,-500.0,0.00021969,2]
[362430971,1748286554040,-223.01984861,0.00021969,2]
[362430972,1748286554063,-500.0,0.00021969,2]
[362430973,1748286554086,-500.0,0.00021969,2]
[362430974,1748286554111,-500.0,0.00021969,2]
[362430975,1748286554137,-334.10363558,0.00021969,2]
[362430976,1748286554161,-500.0,0.00021969,2]
[362430977,1748286554183,-500.0,0.00021969,2]
[362430978,1748286554205,-500.0,0.00021969,2]
[362430979,1748286554229,-500.0,0.00021969,2]
[362430980,1748286554251,-624.68996513,0.00021969,2]
[362430981,1748286554276,-500.0,0.00021969,2]
[362430982,1748286554304,-156.11389403,0.00021969,2]
[362430983,1748286554329,-3000.0,0.0002197,2]
[362430984,1748286554355,-205.315,0.0002197,2]
[362430985,1748286554380,-3000.0,0.0002198,2]
[362430986,1748286554403,-3000.0,0.0002199,2]
[362430987,1748286554430,-162.380719,0.00021997,2]
[362430988,1748286554452,-3000.0,0.00022,2]
[362430989,1748286554473,-3000.0,0.0002201,2]
[362430990,1748286554495,-3000.0,0.0002202,2]
[362430991,1748286554520,-3000.0,0.0002203,2]
[362430992,1748286554541,-3000.0,0.0002204,2]
[362430993,1748286554562,-3000.0,0.0002205,2]
[362430994,1748286554584,-168.3888056,0.00022052,2]
[362430995,1748286554606,-3000.0,0.0002206,2]
[362430996,1748286554627,-3000.0,0.0002207,2]
[362430997,1748286554657,-207.07408501,0.00022076,6]
[362430998,1748286554681,-3000.0,0.0002208,2]
[362430999,1748286554703,-3000.0,0.0002209,2]
[362431000,1748286554724,-3000.0,0.000221,2]
[362431001,1748286554746,-174.61919141,0.00022107,2]
[362431002,1748286554769,-671.50785351,0.0002211,2]
[362431003,1748286569101,-1508.97759603,0.0001996,2]
[362431004,1748286572275,-70.42778776,0.0001996,2]
[362431005,1748286572297,-2328.49214649,0.0002211,2]
[362431006,1748286572318,-3000.0,0.0002212,2]
[362431007,1748286572339,-3000.0,0.0002213,2]
[362431008,1748286572359,-3000.0,0.0002214,2]
[362431009,1748286572379,-3000.0,0.0002215,2]
[362431010,1748286572399,-3000.0,0.0002216,2]
[362431011,1748286572420,-181.08010149,0.00022162,2]
[362431012,1748286572440,-3000.0,0.0002217,2]
[362431013,1748286572459,-3000.0,0.0002218,2]
[362431014,1748286572603,-500.0,0.00022189,2]
[362431015,1748286572627,-2445.01458523,0.0002219,2]
[362431039,1748286631792,-398.15,0.00019821,2]
[362431041,1748286631821,-1052.93692253,0.0002004,2]
[362431043,1748286631835,-796.29,0.00021623,2]
[362431045,1748286631853,-151.0,0.00021887,2]
[362431048,1748286631866,-191.68142288,0.00021942,2]
[362431050,1748286631876,-554.98541477,0.0002219,2]
[362431052,1748286631910,-3000.0,0.000222,2]
[362431054,1748286631925,-409.88,0.000222,3]
[362431056,1748286631937,-204.94,0.000222,3]
[362431058,1748286631947,-614.82,0.000222,3]
[362431060,1748286631956,-300.0,0.00022209,2]
[362431062,1748286631966,-3000.0,0.0002221,2]
[362431064,1748286631997,-1623.71436014,0.0002222,2]
[362431066,1748286632010,-1376.28563986,0.0002222,2]
[362431068,1748286632024,-3000.0,0.0002223,2]
[362431070,1748286632034,-3000.0,0.0002224,2]
[362431072,1748286632043,-3000.0,0.0002225,2]
[362431074,1748286632052,-3000.0,0.0002226,2]
[362431076,1748286632064,-600.0,0.0002226,2]
[362431079,1748286632074,-3000.0,0.0002227,2]
[362431081,1748286632084,-3000.0,0.0002228,2]
[362431083,1748286632095,-5872.92064,0.0002229,2]
[362431085,1748286632104,-894.64583333,0.00022761,2]
[362431087,1748286632114,-423.08503179,0.00022761,2]
[362431089,1748286632123,-207.4,0.00023042,2]
[362431091,1748286632133,-151.0,0.00023042,2]
[362431093,1748286632142,-151.0,0.00023042,2]
[362431095,1748286632152,-151.0,0.00023042,2]
[362431097,1748286632162,-151.0,0.00023042,2]
[362431099,1748286632171,-151.0,0.00023042,2]
[362431101,1748286632180,-151.0,0.00023042,2]
[362431103,1748286632190,-151.0,0.00023042,2]
[362431118,1748286632315,-151.0,0.00023042,2]
[362431121,1748286632329,-151.0,0.00023042,2]
[362431123,1748286632338,-151.0,0.00023042,2]
[362431125,1748286632348,-151.0,0.00023042,2]
[362431127,1748286632358,-151.0,0.00023042,2]
[362431129,1748286632367,-151.0,0.00023042,2]
[362431131,1748286632377,-151.0,0.00023042,2]
[362431133,1748286632387,-151.0,0.00023042,2]
[362431135,1748286632396,-999.0,0.00023287,2]
[362431137,1748286632406,-600.0,0.00023356,2]
[362431139,1748286632415,-1194.44,0.00023425,2]
[362431141,1748286632425,-819.76,0.0002357,3]
[362431143,1748286632434,-409.88,0.0002357,3]
[362431145,1748286632444,-250.0,0.00023693,2]
[362431148,1748286632454,-420.0,0.0002381,2]
[362431150,1748286632463,-270.99560259,0.00023973,2]
[362431152,1748286632474,-153.0,0.00024055,2]
[362431154,1748286632483,-153.0,0.00024055,2]
[362431156,1748286632493,-153.0,0.00024055,2]
[362431158,1748286632503,-960.0,0.00024116,2]
[362431159,1748286632516,-711.797,0.00024116,2]
[362431160,1748286632526,-2234.0,0.00024116,2]
[362431161,1748286632535,-155.0,0.00024129,2]
[362431163,1748286632545,-571.276621,0.00024163,3]
[362431165,1748286632555,-258.285652,0.00024219,2]
[362431166,1748286632564,-800.0,0.00024388,2]
[362431167,1748286632574,-324.32824355,0.00024409,2]
[362431168,1748286632583,-215.0738,0.00024411,2]
[362431169,1748286632593,-800.0,0.00024416,2]
[362431170,1748286632602,-800.0,0.00024446,2]
[362431171,1748286632612,-800.0,0.00024449,2]
[362431172,1748286632622,-600.0,0.00024452,2]
[362431173,1748286632631,-800.0,0.00024452,2]
[362431174,1748286632641,-800.0,0.00024455,2]
[362431175,1748286632651,-800.0,0.0002448,2]
[362431176,1748286632661,-800.0,0.00024498,2]
[362431177,1748286632670,-800.0,0.00024523,2]
[362431178,1748286632680,-800.0,0.00024525,2]
[362431179,1748286632689,-160.0,0.00024529,2]
[362431180,1748286632699,-229.15402412,0.00024529,2]
[362431181,1748286632709,-800.0,0.00024573,2]
[362431182,1748286632718,-800.0,0.00024581,2]
[362431183,1748286632727,-800.0,0.0002459,2]
[362431184,1748286632737,-191.05,0.000246,2]
[362431185,1748286632747,-151.0,0.000246,2]
[362431186,1748286632757,-1000.0,0.0002463,2]
[362431187,1748286632766,-1000.0,0.0002463,2]
[362431188,1748286632775,-1000.0,0.0002463,2]
[362431189,1748286632785,-1095.25772475,0.0002463,2]
[362431190,1748286632794,-70483.74,0.0002465,7]
[362431191,1748286632804,-160.0,0.0002465,7]
[362431192,1748286632814,-12459.0686642,0.0002465,2]
[362431193,1748286632823,-38187.58960173,0.00024657,2]
[362431194,1748286632833,-1663.77259602,0.00024657,3]
[362431195,1748286632843,-450.0,0.00024657,3]
[362431196,1748286632852,-430.0,0.00024657,3]
[362431197,1748286632862,-160.73115001,0.00024657,3]
[362431198,1748286632871,-450.0,0.00024657,3]
[362431199,1748286632881,-430.0,0.00024657,3]
[362431200,1748286632890,-430.0,0.00024657,3]
[362431201,1748286632900,-500.0,0.00024657,3]
[362431202,1748286632909,-160.0,0.00024657,3]
[362431203,1748286632919,-151.0,0.00024657,7]
[362431204,1748286632928,-151.0,0.00024657,7]
[362431205,1748286632938,-151.0,0.00024657,7]
[362431206,1748286632947,-430.0,0.00024657,3]
[362431207,1748286632956,-430.0,0.00024657,3]
[362431208,1748286632966,-430.0,0.00024657,3]
[362431209,1748286632975,-430.0,0.00024657,3]
[362431210,1748286632985,-430.0,0.00024657,3]
[362431211,1748286632994,-430.0,0.00024657,3]
[362431212,1748286633004,-430.0,0.00024657,3]
[362431213,1748286633014,-430.0,0.00024657,3]
[362431214,1748286633027,-430.0,0.00024657,3]
[362431215,1748286633037,-430.0,0.00024657,3]
[362431216,1748286633046,-430.0,0.00024657,3]
[362431217,1748286633055,-430.0,0.00024657,3]
[362431218,1748286633066,-430.0,0.00024657,3]
[362431219,1748286633076,-430.0,0.00024657,3]
[362431220,1748286633085,-430.0,0.00024657,3]
[362431221,1748286633095,-326.64,0.00024657,3]
[362431222,1748286633105,-470.0,0.00024657,3]
[362431223,1748286633114,-470.0,0.00024657,3]
[362431224,1748286633123,-430.0,0.00024657,3]
[362431225,1748286633133,-430.0,0.00024657,3]
[362431226,1748286633145,-430.0,0.00024657,3]
[362431227,1748286633154,-524.78,0.00024657,3]
[362431228,1748286633163,-470.0,0.00024657,3]
[362431229,1748286633173,-151.0,0.00024657,7]
[362431230,1748286633182,-152.853634,0.00024657,7]
[362431231,1748286633192,-160.0,0.00024657,3]
[362431232,1748286633201,-430.0,0.00024657,3]
[362431233,1748286633211,-430.0,0.00024657,3]
[362431234,1748286633221,-358.95,0.00024657,3]
[362431235,1748286633231,-430.0,0.00024657,3]
[362431236,1748286633241,-407.76320901,0.00024657,3]
[362431237,1748286633251,-430.0,0.00024657,3]
[362431238,1748286633261,-430.0,0.00024657,3]
[362431239,1748286633271,-490.0,0.00024657,3]
[362431240,1748286633282,-430.0,0.00024657,3]
[362431241,1748286633291,-430.0,0.00024657,3]
[362431242,1748286633301,-430.0,0.00024657,3]
[362431243,1748286633310,-430.0,0.00024657,3]
[362431244,1748286633321,-430.0,0.00024657,3]
[362431245,1748286633330,-430.0,0.00024657,3]
[362431246,1748286633340,-430.0,0.00024657,3]
[362431247,1748286633349,-333.3,0.00024657,3]
[362431248,1748286633359,-151.0,0.00024657,7]
[362431249,1748286633368,-151.0,0.00024657,7]
[362431250,1748286633378,-430.0,0.00024657,3]
[362431251,1748286633387,-430.0,0.00024657,3]
[362431252,1748286633397,-430.0,0.00024657,3]
[362431253,1748286633407,-163.085573,0.00024657,7]
[362431254,1748286633416,-151.0,0.00024657,7]
[362431255,1748286633427,-201.88652065,0.00024657,3]
[362431256,1748286633437,-430.0,0.00024657,3]
[362431257,1748286633447,-450.0,0.00024657,3]
[362431258,1748286633456,-430.0,0.00024657,3]
[362431259,1748286633466,-430.0,0.00024657,3]
[362431260,1748286633476,-430.0,0.00024657,3]
[362431261,1748286633486,-430.0,0.00024657,3]
[362431262,1748286633495,-430.0,0.00024657,3]
[362431263,1748286633506,-430.0,0.00024657,3]
[362431264,1748286633516,-450.0,0.00024657,3]
[362431265,1748286633526,-450.0,0.00024657,3]
[362431266,1748286633536,-430.0,0.00024657,3]
[362431267,1748286633546,-430.0,0.00024657,3]
[362431268,1748286633556,-430.0,0.00024657,3]
[362431269,1748286633566,-470.0,0.00024657,3]
[362431270,1748286633576,-161.47528225,0.00024657,3]
[362431271,1748286633585,-430.0,0.00024657,3]
[362431272,1748286633595,-450.0,0.00024657,3]
[362431273,1748286633606,-1000.0,0.00024657,3]
[362431274,1748286633615,-327.33540601,0.00024657,3]
[362431275,1748286633626,-450.0,0.00024657,3]
[362431276,1748286633637,-430.0,0.00024657,3]
[362431277,1748286633648,-450.0,0.00024657,3]
[362431278,1748286633658,-430.0,0.00024657,3]
[362431279,1748286633668,-430.0,0.00024657,3]
[362431280,1748286633679,-470.0,0.00024657,3]
[362431281,1748286633689,-450.0,0.00024657,3]
[362431282,1748286633698,-450.0,0.00024657,3]
[362431283,1748286633708,-450.0,0.00024657,3]
[362431284,1748286633719,-450.0,0.00024657,3]
[362431285,1748286633731,-430.0,0.00024657,3]
[362431286,1748286633741,-430.0,0.00024657,3]
[362431287,1748286633752,-430.0,0.00024657,3]
[362431288,1748286633762,-450.0,0.00024657,3]
[362431289,1748286633773,-430.0,0.00024657,3]
[362431290,1748286633783,-430.0,0.00024657,3]
[362431291,1748286633794,-430.0,0.00024657,3]
[362431292,1748286633804,-430.0,0.00024657,3]
[362431293,1748286633814,-430.0,0.00024657,3]
[362431294,1748286633825,-430.0,0.00024657,3]
[362431295,1748286633834,-430.0,0.00024657,3]
[362431296,1748286633844,-430.0,0.00024657,3]
[362431297,1748286633854,-430.0,0.00024657,3]
[362431298,1748286633864,-470.0,0.00024657,3]
[362431299,1748286633874,-490.0,0.00024657,3]
[362431300,1748286633885,-333.01,0.00024657,3]
[362431301,1748286633895,-430.0,0.00024657,3]
[362431302,1748286633906,-430.0,0.00024657,3]
[362431303,1748286633915,-450.0,0.00024657,3]
[362431304,1748286633926,-430.0,0.00024657,3]
[362431305,1748286633937,-450.0,0.00024657,3]
[362431306,1748286633947,-450.0,0.00024657,3]
[362431307,1748286633957,-450.0,0.00024657,3]
[362431308,1748286633968,-450.0,0.00024657,3]
[362431309,1748286633979,-450.0,0.00024657,3]
[362431310,1748286633988,-450.0,0.00024657,3]
[362431311,1748286633998,-430.0,0.00024657,3]
[362431312,1748286634008,-430.0,0.00024657,3]
[362431313,1748286634022,-470.0,0.00024657,3]
[362431314,1748286634032,-430.0,0.00024657,3]
[362431315,1748286634042,-311.57254614,0.00024657,3]
[362431316,1748286634052,-450.0,0.00024657,3]
[362431317,1748286634063,-430.0,0.00024657,3]
[362431318,1748286634074,-430.0,0.00024657,3]
[362431319,1748286634084,-430.0,0.00024657,3]
[362431320,1748286634095,-450.0,0.00024657,3]
[362431321,1748286634105,-430.0,0.00024657,3]
[362431322,1748286634114,-470.0,0.00024657,3]
[362431323,1748286634125,-430.0,0.00024657,3]
[362431324,1748286634134,-430.0,0.00024657,3]
[362431325,1748286634144,-430.0,0.00024657,3]
[362431326,1748286634154,-430.0,0.00024657,3]
[362431327,1748286634164,-430.0,0.00024657,3]
[362431328,1748286634174,-151.0,0.00024657,7]
[362431329,1748286634183,-430.0,0.00024657,3]
[362431330,1748286634193,-210.956413,0.00024657,7]
[362431331,1748286634202,-450.0,0.00024657,3]
[362431332,1748286634212,-152.97749869,0.00024657,3]
[362431333,1748286634221,-450.0,0.00024657,3]
[362431334,1748286634232,-430.0,0.00024657,3]
[362431335,1748286634241,-450.0,0.00024657,3]
[362431336,1748286634251,-430.0,0.00024657,3]
[362431337,1748286634261,-450.0,0.00024657,3]
[362431338,1748286634272,-401.46252826,0.00024657,3]
[362431339,1748286634281,-430.0,0.00024657,3]
[362431340,1748286634291,-450.0,0.00024657,3]
[362431341,1748286634301,-171.61,0.00024657,3]
[362431342,1748286634311,-430.0,0.00024657,3]
[362431343,1748286634321,-430.0,0.00024657,3]
[362431344,1748286634331,-779.8,0.00024657,3]
[362431345,1748286634343,-430.0,0.00024657,3]
[362431346,1748286634352,-779.8,0.00024657,3]
[362431347,1748286634363,-430.0,0.00024657,3]
[362431348,1748286634373,-779.8,0.00024657,3]
[362431349,1748286634383,-779.8,0.00024657,3]
[362431350,1748286634396,-779.8,0.00024657,3]
[362431351,1748286634405,-779.8,0.00024657,3]
[362431352,1748286634416,-779.8,0.00024657,3]
[362431353,1748286634427,-779.8,0.00024657,3]
[362431354,1748286634439,-779.8,0.00024657,3]
[362431355,1748286634450,-450.0,0.00024657,3]
[362431356,1748286634461,-779.8,0.00024657,3]
[362431357,1748286634471,-779.8,0.00024657,3]
[362431358,1748286634481,-779.8,0.00024657,3]
[362431359,1748286634492,-779.8,0.00024657,3]
[362431360,1748286634502,-379.40900658,0.00024657,3]
[362431361,1748286634512,-779.8,0.00024657,3]
[362431362,1748286634522,-779.8,0.00024657,3]
[362431363,1748286634532,-779.8,0.00024657,3]
[362431364,1748286634543,-779.8,0.00024657,3]
[362431365,1748286634553,-430.0,0.00024657,2]
[362431366,1748286634564,-153.37047306,0.00024657,3]
[362431367,1748286634575,-779.8,0.00024657,3]
[362431368,1748286634586,-430.0,0.00024657,2]
[362431369,1748286634596,-779.8,0.00024657,3]
[362431370,1748286634606,-430.0,0.00024657,2]
[362431371,1748286634617,-779.8,0.00024657,3]
[362431372,1748286634627,-430.0,0.00024657,2]
[362431373,1748286634638,-779.8,0.00024657,3]
[362431374,1748286634652,-430.0,0.00024657,2]
[362431375,1748286634662,-779.8,0.00024657,3]
[362431376,1748286634672,-430.0,0.00024657,2]
[362431377,1748286634683,-779.8,0.00024657,3]
[362431378,1748286634692,-272.64,0.00024657,2]
[362431379,1748286634702,-779.95,0.00024657,3]
[362431380,1748286634711,-395.63720593,0.00024657,3]
[362431381,1748286634721,-450.0,0.00024657,3]
[362431382,1748286634731,-430.0,0.00024657,3]
[362431383,1748286634741,-430.0,0.00024657,3]
[362431384,1748286634751,-430.0,0.00024657,3]
[362431385,1748286634760,-430.0,0.00024657,3]
[362431386,1748286634770,-450.0,0.00024657,3]
[362431387,1748286634779,-450.0,0.00024657,3]
[362431388,1748286634789,-430.0,0.00024657,3]
[362431389,1748286634799,-335.13,0.00024657,3]
[362431390,1748286634808,-430.0,0.00024657,3]
[362431391,1748286634817,-430.0,0.00024657,3]
[362431392,1748286634828,-430.0,0.00024657,3]
[362431393,1748286634837,-430.0,0.00024657,3]
[362431394,1748286634847,-430.0,0.00024657,3]
[362431395,1748286634857,-430.0,0.00024657,3]
[362431396,1748286634867,-430.0,0.00024657,3]
[362431397,1748286634878,-490.0,0.00024657,3]
[362431398,1748286634888,-450.0,0.00024657,3]
[362431399,1748286634900,-151.0,0.00024657,7]
[362431400,1748286634910,-151.0,0.00024657,7]
[362431401,1748286634919,-430.0,0.00024657,3]
[362431402,1748286634930,-422.36409094,0.00024657,3]
[362431403,1748286634939,-430.0,0.00024657,3]
[362431404,1748286634949,-430.0,0.00024657,3]
[362431405,1748286635090,-430.0,0.00024657,3]
[362431406,1748286635102,-405.62,0.00024657,3]
[362431407,1748286635113,-450.0,0.00024657,3]
[362431408,1748286635122,-430.0,0.00024657,3]
[362431409,1748286635132,-430.0,0.00024657,3]
[362431410,1748286635141,-430.0,0.00024657,3]
[362431411,1748286635153,-450.0,0.00024657,3]
[362431412,1748286635163,-181.993068,0.00024657,7]
[362431413,1748286635172,-450.0,0.00024657,3]
[362431414,1748286635182,-450.0,0.00024657,3]
[362431415,1748286635191,-168.21391806,0.00024657,3]
[362431416,1748286635201,-430.0,0.00024657,3]
[362431417,1748286635210,-430.0,0.00024657,3]
[362431418,1748286635219,-430.0,0.00024657,3]
[362431419,1748286635230,-430.0,0.00024657,3]
[362431420,1748286635239,-491.47,0.00024657,3]
[362431421,1748286635249,-430.0,0.00024657,3]
[362431422,1748286635258,-430.0,0.00024657,3]
[362431423,1748286635267,-490.0,0.00024657,3]
[362431424,1748286635276,-450.0,0.00024657,3]
[362431425,1748286635286,-296.07466001,0.00024657,3]
[362431426,1748286635297,-430.0,0.00024657,3]
[362431427,1748286635306,-430.0,0.00024657,3]
[362431428,1748286635315,-430.0,0.00024657,3]
[362431429,1748286635326,-450.0,0.00024657,3]
[362431430,1748286635336,-549.36655965,0.00024657,3]
[362431431,1748286635345,-400.0,0.00024657,3]
[362431432,1748286635355,-430.0,0.00024657,3]
[362431433,1748286635365,-470.0,0.00024657,3]
[362431434,1748286635376,-151.0,0.00024657,7]
[362431435,1748286635386,-151.0,0.00024657,7]
[362431436,1748286635398,-450.0,0.00024657,3]
[362431437,1748286635407,-430.0,0.00024657,3]
[362431438,1748286635417,-151.0,0.00024657,7]
[362431439,1748286635426,-430.0,0.00024657,3]
[362431440,1748286635435,-180.889021,0.00024657,7]
[362431441,1748286635445,-430.0,0.00024657,3]
[362431442,1748286635455,-501.75737556,0.00024657,3]
[362431443,1748286635465,-430.0,0.00024657,3]
[362431444,1748286635475,-470.0,0.00024657,3]
[362431445,1748286635485,-430.0,0.00024657,3]
[362431446,1748286635495,-400.0,0.00024657,3]
[362431447,1748286635504,-430.0,0.00024657,3]
[362431448,1748286635515,-450.0,0.00024657,3]
[362431449,1748286635524,-470.0,0.00024657,3]
[362431450,1748286635535,-430.0,0.00024657,3]
[362431451,1748286635544,-430.0,0.00024657,3]
[362431452,1748286635553,-410.0,0.00024657,3]
[362431453,1748286635562,-440.0,0.00024657,3]
[362431454,1748286635572,-403.54670781,0.00024657,3]
[362431455,1748286635582,-430.0,0.00024657,3]
[362431456,1748286635591,-430.0,0.00024657,3]
[362431457,1748286635602,-430.0,0.00024657,3]
[362431458,1748286635611,-550.22,0.00024657,3]
[362431459,1748286635620,-430.0,0.00024657,3]
[362431460,1748286635630,-470.0,0.00024657,3]
[362431461,1748286635640,-450.0,0.00024657,3]
[362431462,1748286635650,-430.0,0.00024657,3]
[362431463,1748286635661,-470.72590005,0.00024657,3]
[362431464,1748286635671,-450.0,0.00024657,3]
[362431465,1748286635682,-403.28890311,0.00024657,3]
[362431466,1748286635692,-430.0,0.00024657,3]
[362431467,1748286635702,-430.0,0.00024657,3]
[362431468,1748286635711,-470.0,0.00024657,3]
[362431469,1748286635722,-490.0,0.00024657,3]
[362431470,1748286635732,-450.0,0.00024657,3]
[362431471,1748286635742,-430.0,0.00024657,3]
[362431472,1748286635753,-430.0,0.00024657,3]
[362431473,1748286635763,-430.0,0.00024657,3]
[362431474,1748286635774,-490.26799731,0.00024657,3]
[362431475,1748286635786,-430.0,0.00024657,3]
[362431476,1748286635796,-430.0,0.00024657,3]
[362431477,1748286635806,-430.0,0.00024657,3]
[362431478,1748286635818,-470.0,0.00024657,3]
[362431479,1748286635827,-430.0,0.00024657,3]
[362431480,1748286635838,-430.0,0.00024657,3]
[362431481,1748286635848,-400.0,0.00024657,3]
[362431482,1748286635858,-430.0,0.00024657,3]
[362431483,1748286635867,-430.0,0.00024657,3]
[362431484,1748286635877,-472.27976292,0.00024657,3]
[362431485,1748286635886,-430.0,0.00024657,3]
[362431486,1748286635896,-430.0,0.00024657,3]
[362431487,1748286635906,-430.0,0.00024657,3]
[362431488,1748286635915,-430.0,0.00024657,3]
[362431489,1748286635925,-430.0,0.00024657,3]
[362431490,1748286635934,-490.0,0.00024657,3]
[362431491,1748286635944,-430.0,0.00024657,3]
[362431492,1748286635953,-470.0,0.00024657,3]
[362431493,1748286635963,-430.0,0.00024657,3]
[362431494,1748286635972,-430.0,0.00024657,3]
[362431495,1748286635982,-430.0,0.00024657,3]
[362431496,1748286635992,-450.0,0.00024657,3]
[362431497,1748286636001,-430.0,0.00024657,3]
[362431498,1748286636011,-490.0,0.00024657,3]
[362431499,1748286636024,-450.0,0.00024657,3]
[362431500,1748286636033,-552.66735733,0.00024657,3]
[362431501,1748286636042,-450.0,0.00024657,3]
[362431502,1748286636051,-400.0,0.00024657,3]
[362431503,1748286636062,-406.09963156,0.00024657,3]
[362431504,1748286636071,-430.0,0.00024657,3]
[362431505,1748286636081,-430.0,0.00024657,3]
[362431506,1748286636090,-430.0,0.00024657,3]
[362431507,1748286636103,-430.0,0.00024657,3]
[362431508,1748286636113,-430.0,0.00024657,3]
[362431509,1748286636122,-375.70175879,0.00024657,3]
[362431510,1748286636132,-450.0,0.00024657,3]
[362431511,1748286636140,-430.0,0.00024657,3]
[362431512,1748286636151,-179.44015182,0.00024657,3]
[362431513,1748286636161,-430.0,0.00024657,3]
[362431514,1748286636170,-470.0,0.00024657,3]
[362431515,1748286636180,-430.0,0.00024657,3]
[362431516,1748286636190,-430.0,0.00024657,3]
[362431517,1748286636199,-1985.59,0.00024657,3]
[362431518,1748286636209,-1985.59,0.00024657,3]
[362431519,1748286636219,-1985.59,0.00024657,3]
[362431520,1748286636229,-1985.59,0.00024657,3]
[362431521,1748286636239,-430.0,0.00024657,3]
[362431522,1748286636248,-1985.59,0.00024657,3]
[362431523,1748286636257,-430.0,0.00024657,3]
[362431524,1748286636267,-476.74968782,0.00024657,3]
[362431525,1748286636276,-1985.59,0.00024657,3]
[362431526,1748286636286,-430.0,0.00024657,3]
[362431527,1748286636295,-1985.59,0.00024657,3]
[362431528,1748286636304,-470.0,0.00024657,3]
[362431529,1748286636314,-1985.59,0.00024657,3]